bitfinex/quotes_SOLUSD_20260115
["timestamp","ask_amount","ask_price","bid_price","bid_amount"]
[1768509670855,7.07263597,141.39,141.36,2.04194246]
[1768509671062,9.0242303,141.39,141.36,2.04194246]
[1768509672065,30.90681312,141.39,141.35,2.04194246]
[1768509672272,1.95108886,141.37,141.33,2.04194246]
[1768509674674,7.07413695,141.36,141.33,2.04194246]
[1768509676373,1.94912437,141.35,141.32,2.04194246]
[1768509676672,1.94912437,141.35,141.31,9.11841145]
[1768509676978,1.94912437,141.35,141.32,2.04194246]
[1768509677755,11.71315611,141.36,141.32,2.04194246]
[1768509677976,9.02278421,141.36,141.32,2.04194246]
[1768509678273,11.71315611,141.36,141.32,2.04194246]
[1768509678857,9.02278421,141.36,141.32,2.04194246]
[1768509680663,7.07413695,141.36,141.34,2.04194246]
[1768509680856,1.94724859,141.39,141.35,2.00011252]
[1768509682479,9.10155289,141.38,141.35,2.00011252]
[1768509684681,9.10155289,141.38,141.34,4.69048442]
[1768509684857,9.10155289,141.38,141.35,2.00011252]
[1768509686562,26.78439346,141.38,141.35,2.00011252]
[1768509691182,1.97271278,141.37,141.34,2.00599965]
[1768509691379,1.97271278,141.37,141.33,4.69637155]
[1768509691588,1.97271278,141.37,141.33,2.00599965]
[1768509692183,1.97271278,141.37,141.32,4.69637155]
[1768509692374,9.0473502,141.35,141.31,4.69637155]
[1768509692573,9.0473502,141.35,141.32,2.00599965]
[1768509692786,7.07463742,141.35,141.33,2.00599965]
[1768509693085,7.07463742,141.35,141.32,4.69637155]
[1768509694685,1.97271278,141.35,141.32,4.69637155]
[1768509699472,9.04760343,141.35,141.32,2.00599965]
[1768509700790,9.04684973,141.36,141.32,2.00599965]
[1768509701189,1.97271278,141.35,141.32,2.00599965]
[1768509702892,9.04750708,141.35,141.32,2.00599965]
[1768509704790,8.98750709,141.35,141.32,2.00599965]
[1768509708090,1.97271278,141.34,141.31,4.69637155]
[1768509708781,1.97271278,141.34,141.32,2.00599965]
[1768509708977,1.97271278,141.35,141.32,2.00599965]
[1768509709293,7.07513796,141.34,141.32,2.00599965]
[1768509709890,7.01513797,141.34,141.32,2.00599965]
[1768509711796,6.95513798,141.34,141.32,2.00599965]
[1768509714394,9.01428996,141.34,141.31,2.10500209]
[1768509716394,2.05915198,141.33,141.3,0.2]
[1768509717202,9.13516466,141.33,141.3,0.2]
[1768509717399,2.05915198,141.32,141.3,0.2]
[1768509718605,1.99915199,141.32,141.3,0.2]
[1768509718903,9.07538436,141.32,141.3,0.2]
[1768509720303,7.07623237,141.32,141.29,0.2]
[1768509720507,2.05915198,141.31,141.29,0.2]
[1768509720712,2.05915198,141.31,141.27,2.10500209]
[1768509721506,2.05915198,141.3,141.27,2.10500209]
[1768509721684,2.05915198,141.31,141.27,2.10500209]
[1768509722408,7.07563857,141.33,141.3,2.10500209]
[1768509722582,9.13479055,141.33,141.3,2.10500209]
[1768509723090,2.05915198,141.32,141.28,2.6903719]
[1768509723295,2.05915198,141.32,141.29,2.10500209]
[1768509723809,2.05915198,141.31,141.27,4.79537399]
[1768509724009,2.05915198,141.31,141.27,2.10500209]
[1768509724188,2.05915198,141.31,141.28,2.10500209]
[1768509724589,9.13606946,141.31,141.28,2.10500209]
[1768509725814,9.13606946,141.31,141.28,4.79537399]
[1768509726191,9.07606947,141.31,141.28,4.79537399]
[1768509726392,9.01606948,141.31,141.28,4.79537399]
[1768509726626,5.34408856,141.33,141.26,0.2]
[1768509726911,2.6903719,141.29,141.26,0.2]
[1768509727616,2.6903719,141.28,141.26,0.2]
[1768509728988,9.76879684,141.28,141.26,0.2]
[1768509729295,7.07842494,141.28,141.26,0.2]
[1768509729599,9.76879684,141.28,141.26,0.2]
[1768509731000,1.01403483,141.26,141.23,0.2]
[1768509731201,2.6903719,141.24,141.22,2.10500209]
[1768509732404,24.77378167,141.28,141.22,2.10500209]
[1768509732595,2.6903719,141.24,141.22,2.10500209]
[1768509734297,8.04245808,141.25,141.22,2.10500209]
[1768509734498,2.6903719,141.24,141.22,2.10500209]
[1768509737316,12.25290017,141.25,141.22,2.10500209]
[1768509737707,11.29038104,141.25,141.22,2.10500209]
[1768509737903,0.97905308,141.26,141.22,2.10500209]
[1768509737904,7.07932172,141.26,141.22,2.10500209]
[1768509739218,8.06647908,141.26,141.22,2.10500209]
[1768509742501,21.90766845,141.27,141.24,2.02171592]
[1768509742502,7.07884504,141.27,141.24,2.02171592]
[1768509743006,7.07814269,141.28,141.24,2.02171592]
[1768509744042,7.07785434,141.29,141.26,6.23215801]
[1768509744202,7.07785434,141.29,141.27,2.02171592]
[1768509744404,5.01550835,141.3,141.27,2.02171592]
[1768509744926,5.01550835,141.3,141.28,2.02171592]
[1768509754321,7.07694112,141.31,141.28,2.02171592]
[1768509754524,8.12592263,141.31,141.28,2.02171592]
[1768509754715,7.07694112,141.31,141.28,2.02171592]
[1768509756619,8.13242974,141.31,141.28,2.02171592]
[1768509759733,7.07694112,141.31,141.3,2.00588145]
[1768509759921,1.06497168,141.34,141.31,2.00588145]
[1768509761014,7.07567358,141.33,141.31,2.00588145]
[1768509761336,8.14678716,141.33,141.3,6.21632354]
[1768509761837,8.14678716,141.33,141.3,2.00588145]
[1768509762136,1.07413172,141.32,141.29,2.00588145]
[1768509762340,1.07413172,141.32,141.28,6.21632354]
[1768509763617,8.15070197,141.32,141.28,6.21632354]
[1768509765632,8.15070197,141.32,141.29,2.00588145]
[1768509765838,7.07657025,141.32,141.29,2.00588145]
[1768509766842,7.07657025,141.32,141.29,6.21632354]
[1768509767023,7.07657025,141.32,141.3,2.00588145]
[1768509768018,8.1666643,141.34,141.3,2.00588145]
[1768509768219,8.1666643,141.34,141.3,6.21632354]
[1768509769239,8.1666643,141.34,141.3,2.00588145]
[1768509769626,1.09431002,141.33,141.3,2.00588145]
[1768509769832,1.09431002,141.33,141.29,2.00588145]
[1768509770236,7.07613925,141.32,141.29,2.00588145]
[1768509770546,8.17012016,141.33,141.3,2.00588145]
[1768509777847,7.07535237,141.34,141.32,6.18018483]
[1768509778154,11.11483519,141.35,141.33,1.96974274]
[1768509778351,11.11483519,141.35,141.32,1.96974274]
[1768509779233,12.23773418,141.35,141.32,1.96974274]
[1768509781156,12.23773418,141.35,141.29,9.04719049]
[1768509781157,1.12771783,141.34,141.29,9.04719049]
[1768509781357,1.12771783,141.34,141.3,6.18018483]
[1768509781549,1.12771783,141.34,141.31,1.96974274]
[1768509782234,25.8915146,141.35,141.31,1.96974274]
[1768509783456,25.8915146,141.35,141.32,1.96974274]
[1768509783655,25.8915146,141.35,141.32,1.93974274]
[1768509783861,7.07483523,141.35,141.32,6.15018483]
[1768509784045,7.07483523,141.35,141.32,4.21044209]
[1768509784561,7.07483523,141.35,141.31,4.21044209]
[1768509785260,1.16702782,141.35,141.31,4.21044209]
[1768509785564,1.16702782,141.35,141.31,6.18018483]
[1768509787464,7.07513796,141.34,141.31,1.96974274]
[1768509787864,7.07513796,141.34,141.32,1.96974274]
[1768509788765,7.07513796,141.34,141.32,1.93974274]
[1768509790270,7.07513796,141.34,141.3,4.21044209]
[1768509790944,7.07513796,141.34,141.31,1.96974274]
[1768509792069,7.07613925,141.32,141.3,1.96974274]
[1768509793766,8.29029366,141.33,141.3,1.96974274]
[1768509794446,8.29029366,141.33,141.29,4.21044209]
[1768509794948,8.29029366,141.33,141.3,4.21044209]
[1768509795572,7.07521997,141.34,141.31,4.21044209]
[1768509795953,7.07521997,141.34,141.31,7.32e-06]
[1768509796165,9.07136258,141.34,141.31,7.32e-06]
[1768509796568,9.07136258,141.34,141.31,3.42e-06]
[1768509796748,7.07521997,141.34,141.31,3.42e-06]
[1768509797559,7.07521997,141.34,141.31,4.09e-06]
[1768509798472,9.07136258,141.34,141.31,4.09e-06]
[1768509798670,9.07136258,141.34,141.31,3.71e-06]
[1768509800251,9.07136258,141.34,141.3,2.69009509]
[1768509800647,9.07136258,141.34,141.3,4.41451922]
[1768509800874,9.07136258,141.34,141.3,1.72442413]
[1768509801173,2.16669997,141.33,141.29,9.76730003]
[1768509801358,2.16669997,141.33,141.29,7.07720494]
[1768509801555,2.16669997,141.33,141.29,9.76730003]
[1768509802376,2.16669997,141.33,141.3,2.69009509]
[1768509802882,2.16669997,141.33,141.28,17.69449248]
[1768509803066,2.16669997,141.33,141.3,4.09e-06]
[1768509805077,2.16669997,141.33,141.3,2.69009509]
[1768509805277,2.16669997,141.33,141.28,17.69449248]
[1768509805482,2.16669997,141.33,141.3,2.69009509]
[1768509806079,2.16669997,141.33,141.3,2.7105665]
[1768509806376,2.16669997,141.33,141.3,2.69009874]
[1768509806573,2.16669997,141.33,141.3,2.69009509]
[1768509806876,2.16669997,141.33,141.29,9.76748519]
[1768509809882,2.16669997,141.33,141.3,2.69009509]
[1768509814194,2.16669997,141.33,141.3,2.71078968]
[1768509814484,2.16669997,141.33,141.3,9.78791755]
[1768509814856,9.20099421,141.35,141.32,0.02069459]
[1768509815057,9.20099421,141.35,141.31,4.38e-06]
[1768509815358,2.1261902,141.34,141.31,4.38e-06]
[1768509816182,9.20142386,141.34,141.31,4.38e-06]
[1768509816361,2.1261902,141.34,141.31,4.38e-06]
[1768509817559,9.20147251,141.34,141.31,4.38e-06]
[1768509817760,9.20147251,141.34,141.3,2.69009509]
[1768509818091,9.20147251,141.34,141.3,9.76715791]
[1768509818496,9.20147251,141.34,141.3,7.07706282]
[1768509818783,2.1261902,141.33,141.3,9.76715791]
[1768509819986,2.1261902,141.33,141.29,2.69009509]
[1768509820679,2.1261902,141.32,141.28,2.69009509]
[1768509820875,2.1261902,141.33,141.29,2.69009509]
[1768509821082,2.1261902,141.33,141.27,24.77525305]
[1768509821396,2.1261902,141.33,141.29,2.69009509]
[1768509821986,2.1261902,141.33,141.29,9.76724634]
[1768509822286,2.1261902,141.37,141.31,2.69009509]
[1768509822790,2.1261902,141.36,141.32,2.69009509]
[1768509823184,2.1261902,141.36,141.32,2.71119506]
[1768509823688,2.1261902,141.36,141.32,2.68119506]
[1768509824372,2.1261902,141.36,141.27,24.77525305]
[1768509824591,2.1261902,141.36,141.32,2.69009509]
[1768509825107,9.20037332,141.36,141.32,2.69009509]
[1768509825877,2.1261902,141.35,141.32,2.69009509]
[1768509826384,2.1261902,141.32,141.26,3.8]
[1768509826594,2.69009509,141.3,141.24,17.70013751]
[1768509826771,2.1261902,141.29,141.25,7.07962098]
[1768509826969,2.1261902,141.29,141.25,9.76971607]
[1768509827178,2.1261902,141.29,141.25,7.07962098]
[1768509828197,2.1261902,141.29,141.24,17.70013751]
[1768509828392,2.1261902,141.29,141.24,20.3902326]
[1768509829768,2.1261902,141.29,141.24,2.69009509]
[1768509831995,2.1261902,141.29,141.25,7.07964601]
[1768509834194,2.1261902,141.29,141.25,7.10231095]
[1768509834995,9.20427821,141.29,141.24,10.90656918]
[1768509835214,2.16329333,141.26,141.22,0.02644548]
[1768509835593,2.16329333,141.26,141.22,7.10726498]
[1768509835772,2.16329333,141.26,141.22,9.79736007]
[1768509836095,2.16329333,141.26,141.23,7.10891255]
[1768509836497,2.16329333,141.27,141.23,7.10891255]
[1768509838303,2.16329333,141.27,141.23,2.71839834]
[1768509838597,2.16329333,141.27,141.23,0.02830325]
[1768509839309,4.85338842,141.27,141.23,0.02830325]
[1768509841605,2.16329333,141.27,141.23,0.02830325]
[1768509841984,2.16329333,141.3,141.26,0.03727688]
[1768509842194,4.85338842,141.31,141.27,0.03901024]
[1768509842586,2.16329333,141.3,141.27,0.03901024]
[1768509842787,2.16329333,141.3,141.23,0.03901024]
[1768509842985,2.16329333,141.3,141.26,0.03901024]
[1768509843404,2.16329333,141.3,141.24,0.04072369]
[1768509843709,2.16329333,141.28,141.24,7.12087095]
[1768509843884,2.16329333,141.28,141.25,0.04072369]
[1768509844884,2.16329333,141.3,141.26,0.04241746]
[1768509845086,2.16329333,141.31,141.27,0.04241746]
[1768509846098,2.16329333,141.33,141.27,0.04409178]
[1768509846277,2.16329333,141.33,141.3,2.69009509]
[1768509846791,2.16329333,141.33,141.29,2.73584195]
[1768509847602,2.16329333,141.33,141.3,7.07714083]
[1768509848494,2.16329333,141.33,141.31,2.69009509]
[1768509849618,2.16329333,141.34,141.32,2.69009509]
[1768509850290,2.16329333,141.34,141.3,0.05059892]
[1768509850291,2.16329333,141.34,141.31,2.69009509]
[1768509850609,2.16329333,141.34,141.3,2.69009509]
[1768509850917,2.16329333,141.33,141.3,2.69009509]
[1768509851209,2.16329333,141.33,141.28,9.76795001]
[1768509852004,7.07607207,141.33,141.28,9.76795001]
[1768509852208,2.16329333,141.32,141.28,9.76795001]
[1768509852409,2.16329333,141.32,141.28,2.69009509]
[1768509853516,9.23980438,141.32,141.28,2.69009509]
[1768509853688,2.16329333,141.31,141.28,2.69009509]
[1768509854913,2.16329333,141.3,141.28,2.69009509]
[1768509856029,2.16329333,141.29,141.25,7.14093336]
[1768509856311,2.16329333,141.29,141.27,2.69009509]
[1768509857410,2.16329333,141.29,141.27,4.2059536]
[1768509857790,7.07684376,141.31,141.28,4.2059536]
[1768509857988,2.16329333,141.3,141.26,0.06274493]
[1768509858189,2.16329333,141.3,141.28,4.2059536]
[1768509862312,2.16329333,141.3,141.27,4.2059536]
[1768509862811,2.16329333,141.3,141.27,11.28457349]
[1768509863394,2.16329333,141.3,141.27,4.2059536]
[1768509863596,2.16329333,141.3,141.26,7.07902706]
[1768509863817,2.16329333,141.3,141.27,4.2059536]
[1768509865425,2.16329333,141.3,141.27,11.2845557]
[1768509867510,2.16329333,141.3,141.27,4.2059536]
[1768509868117,2.18042228,141.29,141.27,4.2059536]
[1768509868322,2.18042228,141.29,141.26,4.2059536]
[1768509869430,2.18042228,141.3,141.27,0.08147767]
[1768509869609,2.18042228,141.3,141.28,4.2059536]
[1768509870503,2.18042228,141.3,141.27,4.2059536]
[1768509870912,2.18042228,141.3,141.25,17.69858632]
[1768509870913,2.18042228,141.29,141.25,17.69858632]
[1768509871125,2.18042228,141.29,141.26,4.2059536]
[1768509872309,2.18042228,141.29,141.26,7.07912813]
[1768509872628,2.18042228,141.29,141.26,11.28508173]
[1768509873125,2.18042228,141.29,141.26,7.07912813]
[1768509873431,2.18042228,141.29,141.26,11.28508173]
[1768509874316,2.18042228,141.3,141.27,4.29342045]
[1768509874517,2.18042228,141.3,141.27,4.2059536]
[1768509875106,9.25728751,141.31,141.28,4.2059536]
[1768509875306,2.18042228,141.3,141.27,0.08746685]
[1768509875506,2.18042228,141.3,141.28,4.2059536]
[1768509878235,2.18042228,141.3,141.27,4.2059536]
[1768509879629,2.18042228,141.3,141.27,11.28454386]
[1768509880323,2.18042228,141.3,141.28,4.2059536]
[1768509882335,2.18042228,141.3,141.27,11.28454386]
[1768509883630,2.18042228,141.3,141.27,7.07859026]
[1768509883834,2.18042228,141.3,141.27,4.2059536]
[1768509884612,2.18042228,141.3,141.26,7.17526813]
[1768509884814,2.18042228,141.3,141.27,11.2845484]
[1768509887236,2.18042228,141.3,141.27,4.2059536]
[1768509888415,2.18042228,141.3,141.27,11.2845762]
[1768509890037,2.18042228,141.3,141.26,0.09635824]
[1768509890265,2.18042228,141.3,141.27,4.2059536]
[1768509890833,2.18042228,141.3,141.28,4.2059536]
[1768509893522,2.18042228,141.3,141.27,7.07857367]
[1768509893719,2.18042228,141.3,141.28,4.2059536]
[1768509894741,9.34267101,141.31,141.28,4.31511735]
[1768509895324,9.34267101,141.31,141.28,4.2059536]
[1768509895531,2.26580578,141.3,141.28,4.2059536]
[1768509895726,2.20580579,141.3,141.28,4.2059536]
[1768509896514,7.07578907,141.33,141.28,7.07810575]
[1768509896727,24.76488551,141.33,141.28,4.2059536]
[1768509897127,28.97083911,141.33,141.28,4.2059536]
[1768509897753,2.26580578,141.31,141.28,4.2059536]
[1768509897928,2.26580578,141.31,141.27,7.07848586]
[1768509898125,2.26580578,141.31,141.27,11.28443946]
[1768509898344,2.26580578,141.31,141.27,11.45717179]
[1768509899040,2.26580578,141.3,141.26,7.0789695]
[1768509899246,2.20580579,141.3,141.27,4.2059536]
[1768509900045,2.1458058,141.3,141.27,4.2059536]
[1768509900250,2.1458058,141.3,141.28,4.2059536]
[1768509901643,2.1458058,141.3,141.27,4.2059536]
[1768509901848,2.1458058,141.3,141.27,11.57988463]
[1768509902028,2.1458058,141.3,141.28,4.2059536]
[1768509903047,2.26580578,141.31,141.28,4.2059536]
[1768509903644,2.26580578,141.32,141.29,4.2059536]
[1768509903841,2.26580578,141.32,141.3,4.2059536]
[1768509904037,2.26580578,141.32,141.28,7.37497201]
[1768509904234,2.26580578,141.32,141.3,4.2059536]
[1768509905035,2.26580578,141.32,141.29,4.2059536]
[1768509905551,2.26580578,141.31,141.29,4.2059536]
[1768509909051,2.26580578,141.31,141.28,11.58174904]
[1768509910263,2.26580578,141.3,141.26,3.8]
[1768509910458,2.26580578,141.29,141.26,3.8]
[1768509911056,2.26580578,141.29,141.26,10.87907974]
[1768509913657,2.26580578,141.29,141.26,7.07907974]
[1768509914359,2.26580578,141.28,141.25,7.381469]
[1768509914659,2.26580578,141.28,141.24,7.0799612]
[1768509914863,2.26580578,141.27,141.24,7.08003002]
[1768509915050,2.20580579,141.27,141.24,7.08003002]
[1768509915362,17.69108783,141.32,141.25,7.07959691]
[1768509915562,4.2059536,141.3,141.24,11.65142462]
[1768509915858,24.76824003,141.31,141.24,7.44547102]
[1768509916066,4.2059536,141.29,141.24,7.44547102]
[1768509916864,7.07788911,141.29,141.24,7.44547102]
[1768509917052,2.26580578,141.28,141.24,7.44547102]
[1768509917444,2.26580578,141.28,141.25,0.36681659]
[1768509917647,2.20580579,141.28,141.25,0.36681659]
[1768509918764,2.20580579,141.28,141.25,7.44638531]
[1768509919662,2.1458058,141.28,141.25,7.44638531]
[1768509920159,2.08580576,141.28,141.25,7.44638531]
[1768509920862,7.07788911,141.29,141.25,7.44638531]
[1768509921068,7.07714083,141.3,141.26,0.5493178]
[1768509921966,7.07714083,141.3,141.25,10.32201303]
[1768509922154,2.14024688,141.29,141.25,10.32201303]
[1768509922867,2.14024688,141.29,141.25,7.62949161]
[1768509923169,2.14024688,141.29,141.25,7.07956872]
[1768509923545,2.14024688,141.28,141.23,3.24363933]
[1768509923748,4.8327683,141.27,141.22,0.55111791]
[1768509924052,2.11033171,141.26,141.22,0.55111791]
[1768509924284,2.69252142,141.27,141.23,7.66198066]
[1768509924648,9.77109216,141.28,141.23,7.66198066]
[1768509925768,7.07857074,141.28,141.23,7.66198066]
[1768509926071,2.29794862,141.27,141.23,7.66198066]
[1768509927573,2.29794862,141.27,141.24,0.5841695]
[1768509928673,2.29794862,141.27,141.23,7.66515449]
[1768509928877,2.29794862,141.27,141.23,10.35767591]
[1768509930074,2.29794862,141.27,141.23,7.66515449]
[1768509930253,2.29794862,141.26,141.23,7.66515449]
[1768509931466,9.37663273,141.27,141.23,7.66515449]
[1768509932473,12.06915415,141.27,141.23,7.66515449]
[1768509933470,9.37663273,141.27,141.23,7.66515449]
[1768509933778,2.29794862,141.27,141.24,0.5878413]
[1768509933967,9.37575678,141.29,141.25,0.5878413]
[1768509934152,2.29794862,141.28,141.25,0.5878413]
[1768509934778,2.29794862,141.28,141.24,3.28095077]
[1768509935294,2.29794862,141.28,141.24,10.36065753]
[1768509940181,2.29794862,141.28,141.24,7.66813611]
[1768509941785,2.29794862,141.28,141.24,10.36065753]
[1768509942885,2.29794862,141.3,141.26,0.59289702]
[1768509943784,2.29794862,141.29,141.26,7.07914483]
[1768509943983,2.29794862,141.29,141.26,7.67257183]
[1768509954392,2.31289074,141.3,141.27,0.59933141]
[1768509954586,2.31289074,141.3,141.26,7.67847624]
[1768509964497,2.31289074,141.29,141.24,4.40366353]
[1768509964702,2.31289074,141.29,141.25,7.68310933]
[1768509965319,2.31289074,141.28,141.24,14.17650548]
[1768509965497,2.31289074,141.28,141.24,11.48398406]
[1768509965690,2.31289074,141.28,141.25,7.07956559]
[1768509966003,2.31289074,141.28,141.25,7.68363543]
[1768509966396,2.31289074,141.28,141.25,7.07956559]
[1768509968504,2.31289074,141.27,141.24,10.88009651]
[1768509969202,2.31289074,141.24,141.21,4.0]
[1768509969406,2.69252142,141.25,141.21,2.41971959]
[1768509969797,7.07902388,141.27,141.22,7.08086946]
[1768509970112,2.69252142,141.29,141.24,2.21971959]
[1768509971202,7.07814269,141.28,141.24,9.29985556]
[1768509971390,2.31289074,141.27,141.24,9.29985556]
[1768509971584,2.31289074,141.28,141.25,2.21971959]
[1768509971888,7.0778024,141.29,141.25,2.21971959]
[1768509972093,9.39069314,141.29,141.25,2.21971959]
[1768509972596,2.31289074,141.28,141.25,2.21971959]
[1768509972910,2.31289074,141.28,141.25,7.07961696]
[1768509974108,2.31289074,141.28,141.25,9.29933655]
[1768509974613,2.31289074,141.28,141.25,11.99185797]
[1768509976711,2.31289074,141.28,141.25,9.29933655]
[1768509978915,2.31289074,141.28,141.23,13.10010543]
[1768509978916,2.31289074,141.27,141.23,13.10010543]
[1768509979602,2.31289074,141.26,141.23,3.8]
[1768509979813,2.31289074,141.25,141.23,3.8]
[1768509980112,2.31289074,141.24,141.21,0.2]
[1768509980328,2.31289074,141.23,141.21,0.2]
[1768509984319,9.23760234,141.25,141.22,2.29755842]
[1768509984523,9.23760234,141.25,141.21,11.48964222]
[1768509984706,2.15772865,141.24,141.21,13.78720064]
[1768509984907,2.15772865,141.26,141.23,2.29755842]
[1768509985106,2.15772865,141.26,141.23,6.50557179]
[1768509985722,2.15772865,141.26,141.23,2.29755842]
[1768509985908,2.15772865,141.26,141.22,13.44631398]
[1768509986304,2.15772865,141.26,141.23,9.23796142]
[1768509987123,2.14625762,141.27,141.24,6.3654228]
[1768509988021,2.14625762,141.28,141.24,13.44518681]
[1768509990418,2.14625762,141.28,141.25,2.15740943]
[1768509992023,2.14625762,141.28,141.25,9.23699524]
[1768509993525,2.14625762,141.29,141.26,2.15740943]
[1768509994205,7.07724594,141.3,141.26,2.15740943]
[1768509994206,2.14625762,141.3,141.26,6.3654228]
[1768509995532,2.14625762,141.3,141.26,13.44416207]
[1768509997429,2.14625762,141.3,141.26,9.2361487]
[1768509997736,2.14625762,141.29,141.25,7.07952754]
[1768509998034,2.14625762,141.28,141.24,13.44526107]
[1768509999114,2.14625762,141.28,141.25,7.07952014]
[1768509999333,2.14625762,141.28,141.25,13.44494294]
[1768510006066,2.14625762,141.28,141.24,7.07976116]
[1768510006258,2.14625762,141.26,141.23,7.08043524]
[1768510008070,2.14625762,141.26,141.23,9.23784467]
[1768510008254,2.14625762,141.26,141.23,13.44585804]
[1768510010071,2.14625762,141.28,141.25,2.15740943]
[1768510010370,2.14625762,141.28,141.24,6.3654228]
[1768510010758,2.14625762,141.28,141.24,4.20801337]
[1768510011478,2.14625762,141.28,141.24,11.28807402]
[1768510011680,2.18488924,141.27,141.24,11.28807402]
[1768510011975,2.18488924,141.27,141.24,7.08006065]
[1768510013874,2.18488924,141.27,141.24,11.28807402]
[1768510020356,2.18488924,141.27,141.24,7.08006065]
[1768510020562,2.18488924,141.27,141.24,11.28807402]
[1768510021380,2.18488924,141.27,141.24,13.46765938]
[1768510021680,2.18488924,141.3,141.26,4.20801337]
[1768510021883,9.26177341,141.31,141.28,2.17958536]
[1768510022384,9.26177341,141.31,141.28,6.38759873]
[1768510022581,2.18488924,141.32,141.29,2.17958536]
[1768510023086,2.18488924,141.32,141.29,4.20801337]
[1768510023261,2.18488924,141.32,141.27,4.20801337]
[1768510023774,2.18488924,141.32,141.27,13.46615034]
[1768510023775,2.18488924,141.31,141.27,13.46615034]
[1768510024280,2.18488924,141.31,141.28,6.38759873]
[1768510025689,2.18488924,141.31,141.28,2.17958536]
[1768510026878,2.18488924,141.3,141.26,13.46660804]
[1768510027079,2.18488924,141.3,141.27,7.07862525]
[1768510027384,2.18488924,141.31,141.28,13.46569035]
[1768510028793,2.18488924,141.31,141.28,9.25767698]
[1768510029974,2.18488924,141.3,141.27,4.20801337]
[1768510030288,2.18488924,141.3,141.26,9.25844048]
[1768510030484,2.18488924,141.3,141.25,9.25913488]
[1768510030677,2.18488924,141.3,141.25,13.46714825]
[1768510031079,2.18488924,141.29,141.25,13.46714825]
[1768510031290,2.18488924,141.28,141.23,9.25973603]
[1768510031488,2.18488924,141.27,141.23,9.25973603]
[1768510031683,2.12488925,141.27,141.23,2.17958536]
[1768510031893,4.20801337,141.27,141.23,2.17958536]
[1768510032282,4.20801337,141.27,141.21,13.66902673]
[1768510032592,4.20801337,141.26,141.21,9.46101336]
[1768510032975,11.28762301,141.26,141.21,9.46101336]
[1768510033692,2.18488924,141.25,141.21,9.46101336]
[1768510033889,2.12488925,141.25,141.21,0.2]
[1768510034596,4.20801337,141.25,141.21,0.2]
[1768510034977,7.08014726,141.24,141.21,0.2]
[1768510035179,7.05023723,141.24,141.21,0.2]
[1768510035995,2.18488924,141.23,141.21,0.2]
[1768510038175,2.12488925,141.23,141.21,0.2]
[1768510039194,7.08076265,141.23,141.2,0.1]
[1768510039385,11.28877602,141.23,141.2,0.1]
[1768510040203,2.18488924,141.22,141.2,0.1]
[1768510040583,2.18488924,141.21,141.2,0.1]
[1768510044386,2.18488924,141.21,141.18,0.1]
[1768510044812,2.12488925,141.21,141.18,0.1]
[1768510045200,2.12488925,141.21,141.18,9.44332327]
[1768510045910,2.06488926,141.21,141.18,9.44332327]
[1768510048012,9.1466615,141.21,141.18,2.36024732]
[1768510048713,2.10877671,141.2,141.18,0.1]
[1768510052112,9.19054895,141.21,141.18,0.1]
[1768510052520,9.19054895,141.21,141.18,2.28243181]
[1768510053944,2.10877671,141.2,141.18,0.1]
[1768510054514,2.10877671,141.2,141.18,7.183095]
[1768510054715,2.07847429,141.2,141.18,7.183095]
[1768510054917,2.04844435,141.2,141.18,0.1]
[1768510055122,2.04844435,141.2,141.18,7.1831278]
[1768510055302,2.04844435,141.2,141.18,0.1]
[1768510057121,4.80392899,141.19,141.18,0.1]
[1768510057299,2.10877671,141.19,141.18,0.1]
[1768510058399,2.04877672,141.19,141.18,0.1]
[1768510058623,9.13143129,141.19,141.18,0.1]
[1768510059442,17.69851997,141.26,141.19,2.18243181]
[1768510059742,2.69515228,141.25,141.19,4.87758409]
[1768510059933,2.69515228,141.24,141.19,2.18243181]
[1768510060137,2.63515229,141.24,141.19,2.18243181]
[1768510060323,2.10877671,141.23,141.19,9.26483911]
[1768510062550,4.80392899,141.23,141.19,9.26483911]
[1768510063745,2.10877671,141.23,141.19,9.26483911]
[1768510064446,2.10877671,141.23,141.19,7.0824073]
[1768510064647,2.10877671,141.23,141.2,2.18243181]
[1768510065650,2.10877671,141.24,141.2,2.18243181]
[1768510065828,2.10877671,141.24,141.21,9.26408325]
[1768510067251,2.10877671,141.23,141.19,7.08249888]
[1768510067439,2.10877671,141.2,141.18,0.1]
[1768510067860,2.10877671,141.18,141.11,0.1]
[1768510068171,2.10877671,141.15,141.11,2.28243181]
[1768510068330,2.10877671,141.15,141.11,0.1]
[1768510068529,4.80392899,141.14,141.11,0.1]
[1768510068729,2.10877671,141.14,141.11,0.1]
[1768510069554,2.10877671,141.13,141.11,0.1]
[1768510074265,9.24006835,141.15,141.12,2.26199287]
[1768510074466,7.08485552,141.15,141.12,2.26199287]
[1768510074832,9.23905955,141.17,141.13,2.16199287]
[1768510075053,2.15521283,141.18,141.14,2.16199287]
[1768510075251,2.15521283,141.18,141.14,4.85714515]
[1768510076235,2.15521283,141.19,141.15,4.85714515]
[1768510077440,9.23798477,141.19,141.15,4.85714515]
[1768510078965,9.23798477,141.19,141.15,11.9417151]
[1768510079759,2.15521283,141.19,141.16,2.16199287]
[1768510079965,2.15521283,141.21,141.16,4.85714515]